[Event "FIDE WY-U16 Olympiad 2022"]
[Site "Nakhchivan"]
[Date "2022.10.06"]
[Round "5.13"]
[White "Levitan, Caleb Levi"]
[Black "Baranciuc, Alexandr"]
[Result "0-1"]
[ECO "C72"]
[WhiteElo "2063"]
[BlackElo "2121"]
[Annotator "TA"]
[PlyCount "114"]
[EventDate "2022.10.02"]
[EventType "team-tourn"]
[EventCountry "AZE"]
[SourceTitle "playchess.com"]
[Source "ChessBase"]
[SourceQuality "1"]
[WhiteTeam "South Africa"]
[BlackTeam "Moldova"]
[WhiteTeamCountry "RSA"]
[BlackTeamCountry "MDA"]
[TimeControl "40/5400+30:1800+30"]

{[%evp 17,114,31,43,38,35,29,41,26,21,24,29,22,18,24,39,19,38,27,43,39,90,-20,-12,-40,-54,-92,-71,-102,-110,-111,-91,-93,-96,-104,-116,-118,-122,-230,-123,-129,-122,-121,-126,-192,-204,-290,-277,-431,-36,-531,-258,-258,-251,-356,-322,-342,-327,-475,-509,-418,0,-331,-264,-280,-203,-240,-231,-237,-232,-223,-189,-334,-326,-331,-322,-307,-333,-309,-312,-298,-273,-400,-389,-410,-358,-516,-515,-508,-510,-508,-521,-687,-659,-29996,-29991,-29997,-29998,-29999,-29998]} 1. e4 {[%emt 0:00:05]} e5 {[%emt 0:00:53]} 2. Nf3 {[%emt 0:00:06]} Nc6 {[%emt 0:00:04]} 3. Bb5 {[%emt 0:00:08]} a6 {[%emt 0:00:24]} 4. Ba4 {[%emt 0:00:10]} d6 {[%emt 0:00:14]} 5. O-O {[%emt 0:01:25]} Bd7 {[%emt 0:00:06]} 6. c3 {[%emt 0:00:34]} Nge7 {[%emt 0:00:12]} 7. d4 {[%emt 0:01:27]} Ng6 {[%emt 0:00:02]} 8. Be3 {[%emt 0:06:05]} Be7 {[%emt 0:00:42]} 9. Nbd2 {[%emt 0:01:10]} O-O {[%emt 0:07:29]} 10. Bb3 {[%emt 0:02:27] C75: Ruy Lopez: Deferred Steinitz: 5 c3 Bd7 6 d4 without ...g6.} Na5 {[%emt 0:07:12]} 11. Bc2 {[%emt 0:01:50] [#]} exd4 $146 {[%emt 0:11:39]} ({Predecessor:} 11... f5 12. dxe5 f4 13. Bd4 Nc6 14. exd6 Bxd6 15. Bb3+ Kh8 16. Nc4 Bg4 17. Qd3 Nh4 18. Nxh4 Qxh4 {1-0 (37) Paez,A (1581)-Hernandez Torres,J (1370) Pereira 2022}) 12. cxd4 {[%emt 0:01:57] White is slightly better.} c5 {[%emt 0:00:12]} 13. Rc1 {[%emt 0:14:30]} Rc8 {[%emt 0:04:34]} 14. Bb1 {[%emt 0:04:46]} b5 {[%emt 0:08:54]} 15. Qe2 {[%emt 0:02:47]} c4 {[%emt 0:08:14]} 16. Rfd1 {[%emt 0:05:02]} Re8 {[%emt 0:11:51]} 17. h3 {[%emt 0:13:47]} d5 {[%emt 0:08:49]} 18. exd5 {[%emt 0:02:52]} Bf8 {[%emt 0:03:55]} ({Black should play} 18... f6 $14) 19. Qf1 {[%emt 0:12:35]} (19. Ne4 $16) 19... Nb7 {[%emt 0:02:13]} 20. Re1 {[%emt 0:04:30]} Nd6 {[%emt 0:01:48]} 21. Bg5 {[%emt 0:03:20]} f6 {[%emt 0:01:03]} 22. Bxg6 {[%emt 0:02:45]} hxg6 {[%emt 0:00:02][%cal Bh7g6,Bg6g5][%mdl 32]} 23. Bf4 {[%emt 0:01:10]} Bf5 {[%emt 0:03:26]} 24. Rxe8 {[%emt 0:03:35]} Qxe8 {[%emt 0:00:49]} 25. g4 {[%emt 0:02:08]} Bd3 {[%emt 0:02:27][%mdl 1024] Black has strong compensation.} 26. Qg2 {[%emt 0:00:42]} g5 {[%emt 0:00:35]} 27. Bg3 {[%emt 0:02:02] [#]} (27. Bxd6 $17 Bxd6 28. h4) 27... Qf7 {[%emt 0:00:17]} (27... b4 $1 $19 28. Ne1 Bg6) 28. Ne1 $17 {[%emt 0:01:00] Threatens to win with Bxd6.} Bg6 {[%emt 0:00:50] Black is more active.} 29. Qf3 {[%emt 0:04:26]} Re8 {[%emt 0:01:33]} 30. Bxd6 {[%emt 0:01:47]} (30. Ng2 $17 {was called for.}) 30... Bxd6 $19 {[%emt 0:00:02]} 31. Nc2 {[%emt 0:02:16]} (31. Ng2 {keeps fighting.}) 31... Qa7 {[%emt 0:04:18]} 32. Qc3 {[%emt 0:01:32]} (32. Nf1 $142) 32... Bd3 $2 {[%emt 0:08:17]} ({Black should try} 32... Re2 $19 33. Ne3 b4 34. Qxc4 Rxd2) 33. b4 $2 {[%emt 0:00:17][%mdl 8192]} (33. b3 $1 $15) 33... Bf4 {[%emt 0:01:00]} (33... Re2 $142 34. Ne3 Qb8) 34. Re1 {[%emt 0:01:25]} Qd7 {[%emt 0:01:37]} 35. Ne3 {[%emt 0:00:35]} (35. Nf1 {was necessary.}) 35... Kf7 {[%emt 0:00:13]} 36. Ndf1 {[%emt 0:00:37]} g6 {[%emt 0:01:00]} 37. a3 {[%emt 0:00:37]} (37. Rd1 $142 Qd6 38. Rxd3 cxd3 39. Kg2) 37... Rh8 38. Kg2 {[%emt 0:00:30]} Re8 {[%emt 0:01:08]} 39. Kg1 $1 {[%emt 0:00:21]} Be4 {[%emt 0:00:35]} 40. Ng3 {[%emt 0:00:39]} Bf3 {[%emt 0:00:53]} 41. Ng2 {[%emt 0:12:58]} Rxe1+ {[%emt 0:00:49]} ({Inferior is} 41... Qxd5 42. Rxe8 Kxe8 43. Ne1) 42. Nxe1 {[%emt 0:00:36]} Bxd5 {[%emt 0:00:12]} 43. Ne2 {[%emt 0:01:39]} Bc7 {[%emt 0:01:34] A strong pair of Bishops.} 44. Ng3 {[%emt 0:02:32]} (44. Qe3 $142) 44... Bb7 {[%emt 0:02:19]} 45. Kf1 {[%emt 0:03:17]} Qd5 {[%emt 0:00:17]} 46. Ke2 {[%emt 0:01:14]} Bb6 {[%emt 0:09:37]} 47. Nc2 {[%emt 0:02:54]} Qg2 {[%emt 0:00:22] Prevents f3.} 48. Nf1 {[%emt 0:02:39]} Qe4+ {[%emt 0:00:46]} 49. Kd2 {[%emt 0:01:09]} (49. Kd1 {is the only way for White.}) 49... Bc7 {[%emt 0:00:39]} 50. Nce3 {[%emt 0:02:09]} Bf4 {[%emt 0:00:24]} 51. Kc1 {[%emt 0:01:25]} (51. Ke1 $142) 51... Qg2 {[%emt 0:01:40] [#] ( -> ...Qxf1+)} 52. Qe1 {[%emt 0:01:17]} Qxh3 {[%emt 0:00:42]} 53. Kb2 {[%emt 0:00:15]} Qh1 {[%emt 0:00:51]} 54. Qe2 {[%emt 0:01:45]} Be4 {[%emt 0:01:46] Strongly threatening ...Bd3.} 55. Ng3 {[%emt 0:01:35]} Qb1+ {[%emt 0:00:27] Black mates.} 56. Kc3 {[%emt 0:00:14]} Bxe3 {[%emt 0:01:15][%csl Gc4][%cal Rb1b3]} 57. Nxe4 {[%emt 0:00:41]} Qc1+ {[%emt 0:00:15] Weighted Error Value: White=0.55/Black=0.42} 0-1

[Event "FIDE WY-U16 Olympiad 2022"]
[Site "Nakhchivan"]
[Date "2022.10.06"]
[Round "5.14"]
[White "Gonzalez Soler, Leduard Manuel"]
[Black "Taspinar, Yanki"]
[Result "1-0"]
[ECO "A06"]
[WhiteElo "2251"]
[BlackElo "2325"]
[Annotator "TA"]
[PlyCount "85"]
[EventDate "2022.10.02"]
[EventType "team-tourn"]
[EventCountry "AZE"]
[SourceTitle "playchess.com"]
[Source "ChessBase"]
[SourceQuality "1"]
[WhiteTeam "Cuba"]
[BlackTeam "Turkey"]
[WhiteTeamCountry "CUB"]
[BlackTeamCountry "TUR"]
[TimeControl "40/5400+30:1800+30"]

{[%evp 11,85,2,0,12,26,14,9,10,0,8,8,7,22,22,16,14,19,18,23,12,59,64,60,0,0,0,0,0,0,0,193,188,234,189,520,537,29986,29987,29990,592,576,557,1691,855,982,852,1656,844,797,477,569,524,492,415,6008,5485,29990,864,935,931,926,879,954,946,950,937,981,849,1012,999,1192,1189,1361,1077,29975,29974]} 1. Nf3 {[%emt 0:00:06]} d5 {[%emt 0:00:35]} 2. g3 {[%emt 0:00:11]} Nf6 {[%emt 0:00:07]} 3. Bg2 {[%emt 0:00:04]} e6 {[%emt 0:01:02]} 4. O-O {[%emt 0:00:29]} c5 {[%emt 0:02:33]} 5. c4 {[%emt 0:00:36]} d4 {[%emt 0:01:39]} 6. d3 {[%emt 0:01:23]} Nc6 {[%emt 0:00:30]} 7. e3 {[%emt 0:00:22] A09: Réti Opening: 1 Nf3 d5 2 c4.} Bd6 {[%emt 0:05:52]} 8. exd4 {[%emt 0:00:13]} cxd4 {[%emt 0:00:26]} 9. Bg5 {[%emt 0:00:36] The position is equal. The main line 9.Bg5 scores better than 9.Na3.} h6 {[%emt 0:01:29]} 10. Bxf6 {[%emt 0:00:04]} Qxf6 {[%emt 0:02:31]} 11. Nbd2 {[%emt 0:00:05][%cal Bb1d2,Bd2c4,Bc4e5,Be5f7][%mdl 32]} Qd8 {[%emt 0:04:16]} 12. a3 {[%emt 0:15:44]} a5 {[%emt 0:00:33] Inhibits b4.} 13. Rc1 {[%emt 0:24:09]} O-O {[%emt 0:02:28]} 14. c5 {[%emt 0:04:18]} Bc7 {[%emt 0:02:00]} 15. Re1 {[%emt 0:09:31]} e5 {[%emt 0:10:12]} (15... Bd7 $11) 16. Nc4 $14 {[%emt 0:00:27]} Re8 {[%emt 0:14:08]} 17. b4 {[%emt 0:09:38]} (17. Nfd2 $14) 17... axb4 $11 {[%emt 0:20:36]} 18. axb4 {[%emt 0:00:11]} Nxb4 {[%emt 0:14:36]} 19. Nfxe5 {[%emt 0:01:14] aiming for Qb3.} Bxe5 {[%emt 0:09:33] [#]} 20. Nxe5 $146 {[%emt 0:03:27]} ({Predecessor:} 20. Rxe5 Rxe5 21. Nxe5 Qc7 22. Qb3 Qxe5 23. Qxb4 Ra2 24. Re1 Re2 25. Rxe2 Qxe2 26. Bxb7 {0-1 (42) Smith,A (2448)-Sipila,V (2262) Stockholm 2011}) 20... Ra3 {[%emt 0:00:12] Against Qb3. White leaves nothing to chance now.} (20... Na2 $11 {and Black stays safe.} 21. Ra1 Nc3) 21. Rb1 $18 {[%emt 0:16:07]} Na6 {[%emt 0:05:01] [#]} (21... Nc6 $142 22. Nc4 (22. Nxc6 bxc6 23. Bxc6 Bd7 $16) 22... Rxe1+ 23. Qxe1 Rc3 24. Bxc6 bxc6) 22. Qh5 $1 {[%emt 0:01:03]} ({Stronger than} 22. Bxb7 Bxb7 23. Rxb7 Nxc5 $11) 22... Qf6 {[%emt 0:00:35] [#]} (22... Be6 {is tougher.} 23. Rxb7 Qa5) 23. Nxf7 $1 {[%emt 0:01:09][%mdl 512]} Rf8 {[%emt 0:00:01]} (23... Rxe1+ 24. Rxe1) 24. Bd5 {[%emt 0:04:42] Active counter play!} Kh7 {[%emt 0:01:01]} 25. Re5 {[%emt 0:02:05]} (25. Rb6 $142 Be6 26. Rexe6 Nxc5 27. Rxf6 Ra1+ 28. Kg2 Rg1+ 29. Kxg1 Ne6 30. Ng5+ Kh8 31. Rfxe6 Kg8 32. Rxh6+ Rf7 33. Qxf7#) 25... Nc7 {[%emt 0:00:30]} 26. Bc4 {[%emt 0:02:23] Hoping for Rb6.} Rc3 {[%emt 0:00:32][%cal Oc3c4]} 27. Ng5+ {[%emt 0:00:56]} Kh8 {[%emt 0:00:01]} 28. Ne4 {[%emt 0:00:50][%csl LRc3,LRf6]} Qd8 {[%emt 0:00:42]} 29. Nxc3 {[%emt 0:01:18]} dxc3 {[%emt 0:00:01]} 30. Qe2 {[%emt 0:00:32]} Qd4 {[%emt 0:00:21]} 31. Re7 {[%emt 0:01:31]} Qxc5 {[%emt 0:00:48]} 32. Qe3 {[%emt 0:00:27]} Qd6 {[%emt 0:01:06]} (32... c2 $142 33. Rc1 (33. Qxc5 cxb1=Q+ 34. Kg2 Bh3+ 35. Kxh3 Qf1+ 36. Kh4 Rxf2 $11) 33... Qd6 34. Rxc2 Bf5) 33. Rb6 {[%emt 0:00:32]} Nd5 {[%emt 0:00:31]} 34. Rxd6 {[%emt 0:00:32]} (34. Bxd5 $142 Qxb6 35. Qxb6 c2 36. Qb2 Rf6 37. Qxc2 Bh3 38. Qa4 Kh7 39. Qe8) 34... Nxe3 {[%emt 0:00:01]} 35. Rxe3 {[%emt 0:00:08]} ({Don't go for} 35. fxe3 $2 c2 36. Kg2 c1=Q $19) 35... Bg4 {[%emt 0:00:25]} 36. Re1 {[%emt 0:00:48]} c2 {[%emt 0:00:53]} 37. Rc1 {[%emt 0:00:11]} Bd1 {[%emt 0:00:00]} 38. Re6 {[%emt 0:00:47]} Rb8 {[%emt 0:00:22]} 39. Re1 {[%emt 0:00:30]} b5 {[%emt 0:00:00]} 40. Bb3 Rc8 {[#]} 41. Bxc2 $1 {[%emt 0:30:43]} Bxc2 {[%emt 0:30:14]} (41... Bg4 42. d4) 42. Re2 {[%emt 0:00:04]} b4 {[%emt 0:00:03]} 43. Rexc2 {[%emt 0:00:07] Weighted Error Value: White=0.49/Black=0.81} 1-0

[Event "FIDE WY-U16 Olympiad 2022"]
[Site "Nakhchivan"]
[Date "2022.10.06"]
[Round "5.14"]
[White "Triboi, Alexander"]
[Black "Badenhorst, Chloe"]
[Result "1/2-1/2"]
[ECO "B33"]
[WhiteElo "1974"]
[BlackElo "1687"]
[Annotator "TA"]
[PlyCount "58"]
[EventDate "2022.10.02"]
[EventType "team-tourn"]
[EventCountry "AZE"]
[SourceTitle "playchess.com"]
[Source "ChessBase"]
[SourceQuality "1"]
[WhiteTeam "Moldova"]
[BlackTeam "South Africa"]
[WhiteTeamCountry "MDA"]
[BlackTeamCountry "RSA"]
[TimeControl "40/5400+30:1800+30"]

{[%evp 28,58,33,36,48,51,56,68,60,39,27,11,0,0,0,0,0,0,0,0,0,-34,-8,-24,-20,-101,-38,-76,0,-93,0,-77,0]} 1. e4 {[%emt 0:00:06]} c5 {[%emt 0:00:05]} 2. Nf3 {[%emt 0:00:04]} Nc6 {[%emt 0:00:05]} 3. d4 {[%emt 0:00:03]} cxd4 {[%emt 0:00:08]} 4. Nxd4 {[%emt 0:00:03]} Nf6 {[%emt 0:00:10]} 5. Nc3 {[%emt 0:00:03]} e5 {[%emt 0:00:06]} 6. Ndb5 {[%emt 0:00:05]} d6 {[%emt 0:00:08]} 7. Bg5 {[%emt 0:00:28]} a6 {[%emt 0:00:20]} 8. Na3 {[%emt 0:00:01]} b5 {[%emt 0:00:11]} 9. Bxf6 {[%emt 0:00:04]} gxf6 {[%emt 0:00:11]} 10. Nd5 {[%emt 0:00:10]} f5 {[%emt 0:00:10]} 11. Bd3 {[%emt 0:00:54]} Be6 {[%emt 0:00:21]} 12. c3 {[%emt 0:02:17]} Bg7 {[%emt 0:03:08]} 13. Qh5 {[%emt 0:01:01]} O-O {[%emt 0:13:44]} 14. O-O {[%emt 0:01:23]} f4 {[%emt 0:02:24]} 15. Nc2 {[%emt 0:19:45] Pair of Knights!} h6 {[%emt 0:09:59] B33: Sicilian: Pelikan and Sveshnikov Variations.} 16. a4 {[%emt 0:06:47]} bxa4 $1 {[%emt 0:03:33]} 17. Rxa4 {[%emt 0:00:09]} a5 {[%emt 0:01:46] White is slightly better.} 18. Rfa1 {[%emt 0:07:07]} Rb8 {[%emt 0:27:27]} 19. b4 {[%emt 0:08:23]} axb4 {[%emt 0:01:02]} 20. Ncxb4 {[%emt 0:03:56]} Nxb4 {[%emt 0:01:51] [#]} 21. Nxb4 $146 {[%emt 0:05:42] Strongly threatening Nc6.} ({Predecessor:} 21. cxb4 Bxd5 22. exd5 e4 23. Bxe4 Re8 24. Ra7 Qf6 25. f3 Rxb4 26. h3 Rb2 27. Kh1 {1-0 (44) Parligras,M (2539)-Milanovic,D (2443) Sozina 2004}) 21... Rc8 {[%emt 0:05:17] Against Nc6} 22. R1a3 {[%emt 0:04:48]} Qg5 {[%emt 0:09:28]} 23. Qxg5 {[%emt 0:01:47]} hxg5 {[%emt 0:00:02]} 24. Ra6 {[%emt 0:00:01]} Rfd8 {[%emt 0:03:08]} 25. Nc6 {[%emt 0:06:18]} Rd7 {[%emt 0:00:55]} 26. Na7 {[%emt 0:02:58]} (26. Ra8 $11 {keeps the balance.} Rxa8 27. Rxa8+ Bf8 28. Nd8) 26... Rb8 {[%emt 0:01:05]} ({Black should try} 26... Rc5 $17 {...d5 is the strong threat.} 27. R6a5 Rxa5 28. Rxa5 d5 29. exd5 Bxd5) 27. Nc6 {[%emt 0:02:47]} Rc8 {[%emt 0:01:49]} 28. Na7 {[%emt 0:05:41]} Rb8 {[%emt 0:00:10]} 29. Nc6 {[%emt 0:01:13]} Rc8 {[%emt 0:00:26] Weighted Error Value: White=0.15 (very precise) /Black=0.18 (very precise)} (29... Rb2 $17) 1/2-1/2

[Event "FIDE WY-U16 Olympiad 2022"]
[Site "Nakhchivan"]
[Date "2022.10.06"]
[Round "5.15"]
[White "Camlar, Arda"]
[Black "Hernandez Izquierdo, Jose A."]
[Result "1-0"]
[ECO "A80"]
[WhiteElo "2322"]
[BlackElo "2140"]
[Annotator "TA"]
[PlyCount "117"]
[EventDate "2022.10.02"]
[EventType "team-tourn"]
[EventCountry "AZE"]
[SourceTitle "playchess.com"]
[Source "ChessBase"]
[SourceQuality "1"]
[WhiteTeam "Turkey"]
[BlackTeam "Cuba"]
[WhiteTeamCountry "TUR"]
[BlackTeamCountry "CUB"]
[TimeControl "40/5400+30:1800+30"]

{[%evp 9,117,11,11,2,12,0,0,0,-3,-13,0,-15,-23,-17,25,0,16,0,-14,0,0,0,0,0,0,-107,42,47,49,34,40,39,40,18,11,14,12,12,11,11,8,0,0,-18,-31,-37,-18,-72,-45,-53,-43,-53,-48,-71,-54,-46,-6,-11,0,0,0,0,0,0,4,0,3,0,0,0,4,0,0,-11,60,0,12,8,9,8,8,12,8,12,108,93,84,104,347,325,402,400,589,538,585,591,770,732,1496,1435,1595,1570,1622,1612,2819,2791,12844,12845,12847,12847]} 1. d4 {[%emt 0:00:20]} f5 {[%emt 0:00:16]} 2. Bg5 {[%emt 0:00:19]} d5 {[%emt 0:01:11]} 3. Nc3 {[%emt 0:01:39]} Nf6 {[%emt 0:00:06]} 4. h4 {[%emt 0:01:02]} e6 {[%emt 0:01:52]} 5. e3 {[%emt 0:02:40]} Be7 {[%emt 0:02:47] [#]} 6. Qd2 $146 {[%emt 0:04:50] A80: Dutch Defence: Unusual White second moves.} ({Predecessor:} 6. Nh3 O-O 7. Qd2 Ne4 8. Nxe4 dxe4 9. O-O-O Nd7 10. Nf4 Nf6 11. Bc4 Qd6 12. Qa5 h6 13. Qxf5 Nd5 14. Qxe4 Bxg5 15. Nxd5 {1-0 (15) Jobava,B (2713)-Sandipan,C (2594) Dubai 2014}) 6... O-O {[%emt 0:07:01]} 7. O-O-O {[%emt 0:03:46]} c5 {[%emt 0:03:11]} 8. dxc5 $1 {[%emt 0:01:47] The position is equal.} Nc6 {[%emt 0:05:00]} 9. Nf3 {[%emt 0:03:36]} Qa5 {[%emt 0:17:11]} 10. Nd4 {[%emt 0:05:21]} Qxc5 {[%emt 0:03:05]} 11. f3 {[%emt 0:04:05]} Ne5 {[%emt 0:09:32]} 12. Nb3 {[%emt 0:04:41]} Qb6 {[%emt 0:03:04]} 13. Bf4 {[%emt 0:15:39]} Nf7 {[%emt 0:01:32]} 14. Qd4 {[%emt 0:10:30]} Bd7 {[%emt 0:06:47]} 15. Qxb6 {[%emt 0:04:10]} axb6 {[%emt 0:00:01]} 16. Kb1 {[%emt 0:00:34]} Rfc8 {[%emt 0:03:13]} 17. e4 {[%emt 0:06:41]} (17. h5 $11) 17... e5 {[%emt 0:07:53]} (17... dxe4 $6 18. fxe4 fxe4 19. Nxe4 $11) ({Better is} 17... fxe4 $17 18. Bg5 exf3 19. gxf3 h6 20. Bxf6 Bxf6) 18. Bg5 $14 {[%emt 0:02:38]} ({Reject} 18. Nxd5 Nxd5 19. Rxd5 Bc6 $15) 18... d4 {[%emt 0:00:40]} ({Weaker is} 18... fxe4 19. Bxf6 Bxf6 20. Nxd5 $16) 19. Bxf6 {[%emt 0:00:23]} Bxf6 {[%emt 0:00:02]} 20. Nd5 {[%emt 0:00:13]} Bd8 {[%emt 0:00:04]} 21. f4 {[%emt 0:02:51]} (21. Bd3 $5 {[%cal Re4f5]}) 21... fxe4 {[%emt 0:01:40]} 22. fxe5 {[%emt 0:00:33]} d3 {[%emt 0:02:15]} 23. cxd3 {[%emt 0:00:30]} exd3 {[%emt 0:00:01]} 24. Bxd3 {[%emt 0:00:39]} Nxe5 {[%emt 0:00:03]} 25. Be4 {[%emt 0:00:40]} Rc4 $1 $36 {[%emt 0:02:49][%mdl 2048] Black has some pressure.} 26. Rhe1 {[%emt 0:03:45] [#]} Rxe4 {[%emt 0:02:50]} 27. Rxe4 {[%emt 0:00:42]} Bf5 $1 {[%emt 0:00:00][%csl LRe4,LRh4]} 28. Rde1 {[%emt 0:03:15]} (28. Nd2 $11 {keeps the balance.}) 28... Bxh4 {[%emt 0:00:22] Threatens to win with ...Ra4.} (28... Ra4 $5 29. Nc3 Bxh4 $17) 29. Ka1 {[%emt 0:00:29]} Bxe4 {[%emt 0:00:11]} 30. Rxe4 {[%emt 0:00:02]} Bf6 {[%emt 0:00:01]} 31. Nxb6 {[%emt 0:00:57]} Rd8 {[%emt 0:00:47] ( -> ...Rd1+)} 32. Kb1 {[%emt 0:01:26]} Rd1+ {[%emt 0:02:20]} 33. Kc2 {[%emt 0:00:09]} Rg1 {[%emt 0:00:21]} 34. Re2 {[%emt 0:00:41]} Nc6 {[%emt 0:01:06]} 35. Nd5 {[%emt 0:00:30] Prevents Nb4+.} Be5 {[%emt 0:00:06]} 36. Kd3 {[%emt 0:01:40]} Rb1 {[%emt 0:02:03]} 37. Nc3 {[%emt 0:01:56] Pair of Knights!} Rf1 {[%emt 0:02:57]} 38. Kc4 {[%emt 0:02:41]} Rf4+ {[%emt 0:01:04]} 39. Kc5 {[%emt 0:01:11]} Rf6 {[%emt 0:01:50]} 40. Nd5 {[%emt 0:01:02]} Re6 {[%emt 0:00:26] And now ...Bd6+ would win.} 41. Kc4 {[%emt 0:30:56]} Rd6 {[%emt 0:32:45]} (41... Rg6 $11) 42. Ne7+ {[%emt 0:02:21]} Kf7 {[%emt 0:00:52]} 43. Nxc6 {[%emt 0:00:54]} Rxc6+ $11 {[%emt 0:00:02][%mdl 4096] Endgame KRB-KRN} 44. Kb5 {[%emt 0:00:10]} Bc7 {[%emt 0:02:15]} 45. Nc5 {[%emt 0:00:56]} Rb6+ $1 {[%emt 0:03:49]} 46. Kc4 {[%emt 0:00:36]} h5 {[%emt 0:02:07]} (46... Bd6 $11 {remains equal.}) 47. b4 $16 {[%emt 0:01:03][%cal Bb2b4,Bb4b5,Bb5b6][%mdl 32]} g5 {[%emt 0:01:46] [#]} 48. a4 $1 {[%emt 0:04:33][%cal Ba2a4,Ba4a5,Ba5a6,Ba6a7][%mdl 32] a5 is the strong threat. White is more active.} Rc6 $2 {[%emt 0:02:07] This move loses the game for Black.} (48... h4 $16 {might work better.}) 49. b5 $18 {[%emt 0:01:46]} Rf6 {[%emt 0:00:03]} 50. Nxb7 {[%emt 0:00:20]} Rf4+ {[%emt 0:00:22]} (50... Rb6 {keeps fighting.} 51. Rf2+ Ke8) 51. Kb3 {[%emt 0:00:42] White is clearly winning.} h4 {[%emt 0:00:25]} 52. a5 {[%emt 0:00:31] Hoping for b6.} Rf5 {[%emt 0:00:20]} 53. b6 {[%emt 0:00:55]} Bh2 {[%emt 0:00:25]} 54. Kc4 {[%emt 0:00:00]} Rf4+ {[%emt 0:00:00]} 55. Kb5 {[%emt 0:00:00]} Bg1 {[%emt 0:00:00]} 56. a6 {[%emt 0:00:00] aiming for a7.} Rf6 {[%emt 0:00:00]} 57. Nc5 {[%emt 0:00:00]} Rf1 58. a7 {[%emt 0:00:00]} Rb1+ {[%emt 0:00:00]} 59. Kc6 {[%emt 0:00:00] Weighted Error Value: White=0.12 (very precise) /Black=0.29 (precise)} 1-0

[Event "FIDE WY-U16 Olympiad 2022"]
[Site "Nakhchivan"]
[Date "2022.10.06"]
[Round "5.15"]
[White "Meise, Keagen"]
[Black "Bargan, Victoria"]
[Result "0-1"]
[ECO "D10"]
[WhiteElo "1362"]
[BlackElo "1703"]
[Annotator "NA RC COMBH"]
[PlyCount "102"]
[EventDate "2022.10.02"]
[EventType "team-tourn"]
[EventCountry "AZE"]
[SourceTitle "playchess.com"]
[Source "ChessBase"]
[SourceQuality "1"]
[WhiteTeam "South Africa"]
[BlackTeam "Moldova"]
[WhiteTeamCountry "RSA"]
[BlackTeamCountry "MDA"]
[TimeControl "40/5400+30:1800+30"]

1. d4 {[%emt 0:00:11]} d5 {[%emt 0:00:05]} 2. c4 {[%emt 0:00:06]} c6 {[%emt 0:00:03]} 3. Nc3 {[%emt 0:00:09]} Nf6 {[%emt 0:00:05]} 4. cxd5 {[%emt 0:00:06]} cxd5 {[%emt 0:00:03]} 5. Bf4 {[%emt 0:00:08]} Nc6 {[%emt 0:00:05]} 6. e3 {[%emt 0:00:12]} Bf5 {[%emt 0:02:30]} 7. Nf3 {[%emt 0:01:13]} e6 {[%emt 0:00:28]} 8. a3 {[%emt 0:00:34]} Bd6 {[%emt 0:06:13]} 9. Bxd6 {[%emt 0:04:15]} Qxd6 {[%emt 0:00:05]} 10. Bd3 {[%emt 0:00:23]} Bxd3 {[%emt 0:03:13]} 11. Qxd3 {[%emt 0:00:07]} O-O {[%emt 0:00:03]} 12. O-O {[%emt 0:00:18]} Rfc8 {[%emt 0:06:41]} 13. Rac1 {[%emt 0:09:54]} Na5 {[%emt 0:08:42]} 14. Ne5 {[%emt 0:07:22]} a6 {[%emt 0:13:58]} 15. Na4 {[%emt 0:19:41]} b5 {[%emt 0:01:23]} 16. Nc5 {[%emt 0:00:19]} Nc4 {[%emt 0:00:09]} 17. Nxc4 {[%emt 0:02:34]} bxc4 {[%emt 0:00:23]} 18. Qd1 {[%emt 0:01:22]} Nd7 {[%emt 0:02:06]} 19. Nxd7 {[%emt 0:00:47]} Qxd7 {[%emt 0:00:04]} 20. Rc3 {[%emt 0:02:45]} Rab8 {[%emt 0:05:45]} 21. b3 {[%emt 0:00:44]} Qb5 {[%emt 0:02:10]} 22. bxc4 {[%emt 0:00:20]} Rxc4 {[%emt 0:05:56]} 23. Qc2 {[%emt 0:05:53]} h6 {[%emt 0:09:48]} 24. h3 {[%emt 0:01:39]} a5 {[%emt 0:01:00]} 25. Rc1 {[%emt 0:01:04]} Rbc8 {[%emt 0:01:54]} 26. Qd2 {[%emt 0:01:51]} a4 {[%emt 0:03:01]} 27. Qd3 {[%emt 0:11:29]} Qb2 {[%emt 0:09:52]} 28. Rxc4 {[%emt 0:00:58]} dxc4 {[%emt 0:02:25]} 29. Qc3 {[%emt 0:00:24]} Qb3 {[%emt 0:00:27]} 30. Kh2 {[%emt 0:05:18]} Kf8 {[%emt 0:03:22]} 31. Kg3 {[%emt 0:00:41]} Ke7 {[%emt 0:04:10]} 32. Kf3 {[%emt 0:04:05]} f5 {[%emt 0:05:45]} 33. g3 {[%emt 0:01:16]} Kd6 {[%emt 0:01:31]} 34. Ke2 {[%emt 0:02:05]} Qxc3 {[%emt 0:01:14]} 35. Rxc3 {[%emt 0:00:07]} Kd5 {[%emt 0:00:01]} 36. g4 {[%emt 0:03:58]} g5 {[%emt 0:01:04]} 37. gxf5 {[%emt 0:00:58]} exf5 {[%emt 0:00:06]} 38. Rc2 {[%emt 0:00:08]} Rb8 {[%emt 0:00:28]} 39. Ra2 {[%emt 0:01:06]} Rb3 {[%emt 0:00:44]} 40. Ra1 {[%emt 0:03:01]} Rb2+ {[%emt 0:00:24]} 41. Kf3 {[%emt 0:30:10]} c3 {[%emt 0:03:36]} 42. Rc1 {[%emt 0:00:00]} Kc4 {[%emt 0:00:12]} 43. d5 {[%emt 0:00:00]} Rd2 {[%emt 0:00:19]} 44. e4 {[%emt 0:00:00]} fxe4+ {[%emt 0:00:07]} 45. Kxe4 {[%emt 0:00:00]} Rd4+ {[%emt 0:00:16]} 46. Ke3 {[%emt 0:00:00]} Rxd5 {[%emt 0:00:05]} 47. f3 {[%emt 0:00:00]} Re5+ {[%emt 0:00:13]} 48. Kf2 {[%emt 0:00:00]} Kb3 {[%emt 0:00:06]} 49. Rb1+ {[%emt 0:00:00]} Kxa3 {[%emt 0:00:20]} 50. f4 {[%emt 0:00:00]} gxf4 {[%emt 0:00:06]} 51. Rb6 {[%emt 0:00:00]} Rc5 {[%emt 0:00:37]} 0-1